fUSD/lending_fUSD_20260224
["ID","MTS","AMOUNT","RATE_DAILY","PERIOD"]
[406602256,1771968643164,-500.0,0.00012466,2]
[406602257,1771968643174,-586.0,0.00012481,2]
[406602258,1771968643184,-500.0,0.00012481,2]
[406602259,1771968643193,-166.68,0.00012513,2]
[406602260,1771968643202,-154.24,0.00012515,2]
[406602261,1771968643211,-586.0,0.00012536,2]
[406602262,1771968643221,-500.0,0.00012536,2]
[406602263,1771968643230,-586.0,0.00012591,2]
[406602265,1771968643240,-500.0,0.00012591,2]
[406602266,1771968643250,-37687.07119789,0.00012591,2]
[406602268,1771968643260,-586.0,0.00012645,2]
[406602269,1771968643268,-500.0,0.00012645,2]
[406602270,1771968643278,-9373.39,0.00012699,2]
[406602271,1771968643287,-586.0,0.000127,2]
[406602272,1771968643296,-500.0,0.000127,2]
[406602273,1771968643305,-303.77478492,0.0001274,2]
[406602274,1771968643314,-823.0,0.0001275,2]
[406602275,1771968643324,-3292.0,0.0001275,2]
[406602276,1771968643333,-736.0,0.00012751,2]
[406602277,1771968643342,-586.0,0.00012755,2]
[406602278,1771968643351,-632.15498182,0.00012755,2]
[406602279,1771968643361,-348.4,0.0001276,2]
[406602280,1771968643370,-374.73958587,0.00012764,2]
[406602281,1771968643381,-2500.0,0.00012764,2]
[406602282,1771968643391,-2500.0,0.00012764,2]
[406602283,1771968643400,-2500.0,0.00012764,2]
[406602284,1771968643409,-586.0,0.0001281,2]
[406602285,1771968643419,-4590.0,0.00012864,2]
[406602286,1771968643429,-586.0,0.00012865,2]
[406602287,1771968643439,-586.0,0.00012919,2]
[406602288,1771968643449,-1000.0,0.00012963,2]
[406602289,1771968643458,-586.0,0.00012974,2]
[406602290,1771968643467,-586.0,0.00013029,2]
[406602291,1771968643476,-5366.86121493,0.0001305,2]
[406602292,1771968643486,-586.0,0.00013084,2]
[406602293,1771968643495,-586.0,0.00013138,2]
[406602294,1771968643503,-597.49149344,0.00013193,2]
[406602295,1771968643512,-162.7376289,0.00013272,2]
[406602296,1771968643522,-3000.0,0.00013312,2]
[406602297,1771968643531,-3000.0,0.00013312,2]
[406602298,1771968643540,-3000.0,0.00013312,2]
[406602299,1771968643550,-3240.0,0.00013425,2]
[406602300,1771968643559,-37687.07119789,0.00013476,2]
[406602301,1771968643568,-154.24,0.00013478,2]
[406602302,1771968643577,-1000.0,0.000135,2]
[406602303,1771968643585,-500.0,0.00013698,2]
[406602304,1771968643594,-500.0,0.00013698,2]
[406602305,1771968643603,-500.0,0.00013698,2]
[406602306,1771968643612,-500.0,0.00013698,2]
[406602307,1771968643621,-500.0,0.00013698,2]
[406602308,1771968643631,-500.0,0.00013698,2]
[406602309,1771968643640,-500.0,0.00013698,2]
[406602310,1771968643649,-500.0,0.00013698,2]
[406602311,1771968643658,-500.0,0.00013698,2]
[406602312,1771968643667,-500.0,0.00013698,2]
[406602313,1771968643676,-500.0,0.00013698,2]
[406602314,1771968643685,-500.0,0.00013698,2]
[406602315,1771968643694,-233.40706108,0.00013698,2]
[406602316,1771968643703,-500.0,0.00013698,2]
[406602317,1771968643713,-500.0,0.00013698,2]
[406602318,1771968643722,-500.0,0.00013698,2]
[406602319,1771968643732,-500.0,0.00013698,2]
[406602320,1771968643742,-322.48933439,0.00013698,2]
[406602321,1771968643752,-500.0,0.00013698,2]
[406602322,1771968643761,-500.0,0.00013698,2]
[406602323,1771968643769,-500.0,0.00013698,2]
[406602324,1771968643778,-500.0,0.00013698,2]
[406602325,1771968643787,-500.0,0.00013698,2]
[406602326,1771968643796,-500.0,0.00013698,2]
[406602327,1771968643806,-500.0,0.00013698,2]
[406602328,1771968643816,-500.0,0.00013698,2]
[406602329,1771968643826,-500.0,0.00013698,2]
[406602330,1771968643837,-500.0,0.00013698,2]
[406602331,1771968643847,-500.0,0.00013698,2]
[406602332,1771968643856,-500.0,0.00013698,2]
[406602333,1771968643865,-500.0,0.00013698,2]
[406602334,1771968643874,-500.0,0.00013698,2]
[406602335,1771968643883,-500.0,0.00013698,2]
[406602336,1771968643892,-500.0,0.00013698,2]
[406602337,1771968643901,-500.0,0.00013698,2]
[406602338,1771968643910,-500.0,0.00013698,2]
[406602339,1771968643920,-400.0,0.00013698,2]
[406602340,1771968643929,-500.0,0.00013698,2]
[406602341,1771968643938,-500.0,0.00013698,2]
[406602342,1771968643947,-578.91,0.00013698,2]
[406602343,1771968643956,-578.91,0.00013698,2]
[406602344,1771968643965,-578.91,0.00013698,2]
[406602345,1771968643975,-578.91,0.00013698,2]
[406602346,1771968643984,-578.91,0.00013698,2]
[406602347,1771968643993,-578.91,0.00013698,2]
[406602348,1771968644002,-578.91,0.00013698,2]
[406602349,1771968644011,-578.91,0.00013698,2]
[406602350,1771968644020,-578.91,0.00013698,2]
[406602351,1771968644030,-578.91,0.00013698,2]
[406602352,1771968644039,-578.91,0.00013698,2]
[406602353,1771968644048,-578.91,0.00013698,2]
[406602354,1771968644057,-578.91,0.00013698,2]
[406602355,1771968644066,-578.91,0.00013698,2]
[406602356,1771968644075,-578.91,0.00013698,2]
[406602357,1771968644085,-578.91,0.00013698,2]
[406602358,1771968644096,-501.44,0.00013698,2]
[406602359,1771968644106,-501.44,0.00013698,2]
[406602360,1771968644115,-501.44,0.00013698,2]
[406602361,1771968644124,-501.44,0.00013698,2]
[406602362,1771968644135,-501.44,0.00013698,2]
[406602363,1771968644144,-501.44,0.00013698,2]
[406602364,1771968644153,-501.44,0.00013698,2]
[406602365,1771968644162,-501.44,0.00013698,2]
[406602366,1771968644173,-501.44,0.00013698,2]
[406602367,1771968644182,-501.44,0.00013698,2]
[406602368,1771968644191,-501.44,0.00013698,2]
[406602369,1771968644200,-501.44,0.00013698,2]
[406602375,1771968644328,-501.44,0.00013698,2]
[406602376,1771968644354,-501.44,0.00013698,2]
[406602377,1771968644363,-501.44,0.00013698,2]
[406602378,1771968644372,-501.44,0.00013698,2]
[406602379,1771968644381,-834.42,0.00013698,2]
[406602380,1771968644391,-834.42,0.00013698,2]
[406602381,1771968644399,-834.42,0.00013698,2]
[406602382,1771968644408,-834.42,0.00013698,2]
[406602383,1771968644417,-834.42,0.00013698,2]
[406602384,1771968644427,-834.42,0.00013698,2]
[406602385,1771968644436,-834.42,0.00013698,2]
[406602386,1771968644445,-834.42,0.00013698,2]
[406602387,1771968644454,-834.42,0.00013698,2]
[406602388,1771968644463,-834.42,0.00013698,2]
[406602389,1771968644472,-834.42,0.00013698,2]
[406602390,1771968644482,-834.42,0.00013698,2]
[406602391,1771968644491,-834.42,0.00013698,2]
[406602392,1771968644501,-834.42,0.00013698,2]
[406602393,1771968644510,-834.42,0.00013698,2]
[406602394,1771968644519,-834.42,0.00013698,2]
[406602395,1771968644529,-500.0,0.00013698,2]
[406602396,1771968644538,-500.0,0.00013698,2]
[406602397,1771968644547,-500.0,0.00013698,2]
[406602398,1771968644557,-500.0,0.00013698,2]
[406602399,1771968644566,-500.0,0.00013698,2]
[406602400,1771968644576,-500.0,0.00013698,2]
[406602401,1771968644585,-500.0,0.00013698,2]
[406602402,1771968644595,-500.0,0.00013698,2]
[406602403,1771968644604,-500.0,0.00013698,2]
[406602404,1771968644613,-500.0,0.00013698,2]
[406602405,1771968644623,-500.0,0.00013698,2]
[406602406,1771968644632,-500.0,0.00013698,2]
[406602407,1771968644641,-500.0,0.00013698,2]
[406602408,1771968644650,-500.0,0.00013698,2]
[406602409,1771968644660,-222.44569411,0.00013698,2]
[406602410,1771968644669,-500.0,0.00013698,2]
[406602411,1771968644678,-500.0,0.00013698,2]
[406602412,1771968644687,-500.0,0.00013698,2]
[406602413,1771968644696,-500.0,0.00013698,2]
[406602414,1771968644706,-500.0,0.00013698,2]
[406602415,1771968644716,-500.0,0.00013698,2]
[406602416,1771968644727,-500.0,0.00013698,2]
[406602417,1771968644736,-395.88818611,0.00013698,2]
[406602418,1771968644745,-500.0,0.00013698,2]
[406602419,1771968644754,-500.0,0.00013698,2]
[406602420,1771968644763,-500.0,0.00013698,2]
[406602421,1771968644774,-500.0,0.00013698,2]
[406602422,1771968644783,-268.25985649,0.00013698,2]
[406602423,1771968644792,-500.0,0.00013698,2]
[406602424,1771968644803,-500.0,0.00013698,2]
[406602425,1771968644813,-500.0,0.00013698,2]
[406602426,1771968644823,-500.0,0.00013698,2]
[406602427,1771968644832,-500.0,0.00013698,2]
[406602428,1771968644842,-500.0,0.00013698,2]
[406602429,1771968644851,-500.0,0.00013698,2]
[406602430,1771968644860,-500.0,0.00013698,2]
[406602431,1771968644870,-500.0,0.00013698,2]
[406602432,1771968644879,-500.0,0.00013698,2]
[406602433,1771968644888,-500.0,0.00013698,2]
[406602434,1771968644898,-501.58967205,0.00013698,2]
[406602435,1771968644908,-500.0,0.00013698,2]
[406602436,1771968644917,-500.0,0.00013698,2]
[406602437,1771968644927,-500.0,0.00013698,2]
[406602438,1771968644936,-500.0,0.00013698,2]
[406602439,1771968644945,-332.48969422,0.00013698,2]
[406602440,1771968644955,-554.47,0.00013698,2]
[406602441,1771968644965,-554.47,0.00013698,2]
[406602442,1771968644974,-554.47,0.00013698,2]
[406602443,1771968644983,-554.47,0.00013698,2]
[406602444,1771968644993,-554.47,0.00013698,2]
[406602445,1771968645002,-554.47,0.00013698,2]
[406602446,1771968645011,-554.47,0.00013698,2]
[406602447,1771968645020,-554.47,0.00013698,2]
[406602448,1771968645029,-554.47,0.00013698,2]
[406602449,1771968645039,-554.47,0.00013698,2]
[406602450,1771968645049,-554.47,0.00013698,2]
[406602451,1771968645059,-554.47,0.00013698,2]
[406602452,1771968645068,-554.47,0.00013698,2]
[406602453,1771968645078,-554.47,0.00013698,2]
[406602454,1771968645088,-554.47,0.00013698,2]
[406602455,1771968645101,-554.47,0.00013698,2]
[406602456,1771968645110,-554.47,0.00013698,2]
[406602457,1771968645120,-554.47,0.00013698,2]
[406602458,1771968645129,-500.0,0.00013698,2]
[406602459,1771968645139,-500.0,0.00013698,2]
[406602460,1771968645149,-500.0,0.00013698,2]
[406602461,1771968645158,-500.0,0.00013698,2]
[406602462,1771968645167,-500.0,0.00013698,2]
[406602463,1771968645177,-500.0,0.00013698,2]
[406602464,1771968645186,-510.28250517,0.00013698,2]
[406602465,1771968645195,-500.0,0.00013698,2]
[406602466,1771968645204,-500.0,0.00013698,2]
[406602467,1771968645213,-500.0,0.00013698,2]
[406602468,1771968645222,-500.0,0.00013698,2]
[406602469,1771968645232,-500.0,0.00013698,2]
[406602470,1771968645242,-500.0,0.00013698,2]
[406602471,1771968645251,-500.0,0.00013698,2]
[406602472,1771968645260,-500.0,0.00013698,2]
[406602473,1771968645270,-500.0,0.00013698,2]
[406602474,1771968645279,-500.0,0.00013698,2]
[406602475,1771968645288,-500.0,0.00013698,2]
[406602476,1771968645297,-500.0,0.00013698,2]
[406602477,1771968645306,-500.0,0.00013698,2]
[406602478,1771968645315,-500.0,0.00013698,2]
[406602479,1771968645325,-500.0,0.00013698,2]
[406602480,1771968645334,-500.0,0.00013698,2]
[406602481,1771968645343,-534.69,0.00013698,2]
[406602482,1771968645352,-534.69,0.00013698,2]
[406602483,1771968645362,-534.69,0.00013698,2]
[406602484,1771968645371,-534.69,0.00013698,2]
[406602485,1771968645380,-534.69,0.00013698,2]
[406602486,1771968645389,-534.69,0.00013698,2]
[406602487,1771968645398,-534.69,0.00013698,2]
[406602488,1771968645407,-534.69,0.00013698,2]
[406602489,1771968645416,-534.69,0.00013698,2]
[406602490,1771968645426,-534.69,0.00013698,2]
[406602491,1771968645435,-534.69,0.00013698,2]
[406602492,1771968645445,-534.69,0.00013698,2]
[406602493,1771968645454,-534.69,0.00013698,2]
[406602494,1771968645463,-534.69,0.00013698,2]
[406602495,1771968645472,-534.69,0.00013698,2]
[406602496,1771968645481,-534.69,0.00013698,2]
[406602497,1771968645490,-500.0,0.00013698,2]
[406602498,1771968645499,-500.0,0.00013698,2]
[406602499,1771968645508,-500.0,0.00013698,2]
[406602500,1771968645517,-500.0,0.00013698,2]
[406602501,1771968645526,-500.0,0.00013698,2]
[406602502,1771968645535,-500.0,0.00013698,2]
[406602503,1771968645544,-500.0,0.00013698,2]
[406602504,1771968645553,-500.0,0.00013698,2]
[406602505,1771968645562,-722.37,0.00013698,2]
[406602506,1771968645571,-722.37,0.00013698,2]
[406602507,1771968645580,-722.37,0.00013698,2]
[406602508,1771968645589,-722.37,0.00013698,2]
[406602509,1771968645598,-722.37,0.00013698,2]
[406602510,1771968645607,-722.37,0.00013698,2]
[406602511,1771968645616,-722.37,0.00013698,2]
[406602512,1771968645625,-722.37,0.00013698,2]
[406602513,1771968645634,-722.37,0.00013698,2]
[406602514,1771968645643,-722.37,0.00013698,2]
[406602515,1771968645653,-722.37,0.00013698,2]
[406602516,1771968645662,-722.37,0.00013698,2]
[406602517,1771968645671,-722.37,0.00013698,2]
[406602518,1771968645680,-722.37,0.00013698,2]
[406602519,1771968645689,-722.37,0.00013698,2]
[406602520,1771968645698,-722.37,0.00013698,2]
[406602521,1771968645707,-768.51,0.00013698,2]
[406602522,1771968645716,-768.51,0.00013698,2]
[406602523,1771968645726,-768.51,0.00013698,2]
[406602524,1771968645735,-768.51,0.00013698,2]
[406602525,1771968645744,-768.51,0.00013698,2]
[406602526,1771968645753,-768.51,0.00013698,2]
[406602527,1771968645762,-768.51,0.00013698,2]
[406602528,1771968645771,-768.51,0.00013698,2]
[406602529,1771968645780,-768.51,0.00013698,2]
[406602530,1771968645789,-768.51,0.00013698,2]
[406602531,1771968645799,-768.51,0.00013698,2]
[406602532,1771968645807,-768.51,0.00013698,2]
[406602533,1771968645817,-768.51,0.00013698,2]
[406602534,1771968645826,-768.51,0.00013698,2]
[406602535,1771968645834,-768.51,0.00013698,2]
[406602536,1771968645844,-768.51,0.00013698,2]
[406602537,1771968645852,-768.51,0.00013698,2]
[406602538,1771968645861,-768.51,0.00013698,2]
[406602539,1771968645871,-500.0,0.00013698,2]
[406602540,1771968645880,-500.0,0.00013698,2]
[406602541,1771968645889,-500.0,0.00013698,2]
[406602542,1771968645898,-500.0,0.00013698,2]
[406602543,1771968645909,-500.0,0.00013698,2]
[406602544,1771968645920,-500.0,0.00013698,2]
[406602545,1771968645932,-500.0,0.00013698,2]
[406602546,1771968645941,-500.0,0.00013698,2]
[406602547,1771968645950,-500.0,0.00013698,2]
[406602548,1771968645959,-500.0,0.00013698,2]
[406602549,1771968645967,-527.25,0.00013698,2]
[406602550,1771968645977,-518.48,0.00013698,2]
[406602551,1771968645986,-518.48,0.00013698,2]
[406602552,1771968645995,-518.48,0.00013698,2]
[406602553,1771968646004,-518.48,0.00013698,2]
[406602554,1771968646013,-518.48,0.00013698,2]
[406602555,1771968646023,-518.48,0.00013698,2]
[406602557,1771968646032,-518.48,0.00013698,2]
[406602559,1771968646041,-518.48,0.00013698,2]
[406602560,1771968646050,-518.48,0.00013698,2]
[406602561,1771968646060,-518.48,0.00013698,2]
[406602562,1771968646068,-518.48,0.00013698,2]
[406602563,1771968646079,-518.48,0.00013698,2]
[406602565,1771968646089,-518.48,0.00013698,2]
[406602567,1771968646100,-518.48,0.00013698,2]
[406602568,1771968646109,-518.48,0.00013698,2]
[406602570,1771968646118,-518.48,0.00013698,2]
[406602572,1771968646127,-503.69,0.00013698,2]
[406602574,1771968646136,-503.69,0.00013698,2]
[406602576,1771968646145,-503.69,0.00013698,2]
[406602577,1771968646154,-503.69,0.00013698,2]
[406602578,1771968646164,-503.69,0.00013698,2]
[406602579,1771968646175,-503.69,0.00013698,2]
[406602580,1771968646184,-503.69,0.00013698,2]
[406602581,1771968646194,-503.69,0.00013698,2]
[406602582,1771968646203,-503.69,0.00013698,2]
[406602583,1771968646213,-503.69,0.00013698,2]
[406602584,1771968646222,-503.69,0.00013698,2]
[406602585,1771968646231,-503.69,0.00013698,2]
[406602586,1771968646240,-503.69,0.00013698,2]
[406602587,1771968646250,-503.69,0.00013698,2]
[406602588,1771968646259,-503.69,0.00013698,2]
[406602589,1771968646269,-503.69,0.00013698,2]
[406602590,1771968646279,-500.0,0.00013698,2]
[406602591,1771968646288,-500.0,0.00013698,2]
[406602592,1771968646297,-500.0,0.00013698,2]
[406602593,1771968646307,-150.96195478,0.00013698,2]
[406602594,1771968646316,-1180.4,0.00013698,2]
[406602595,1771968646325,-1180.4,0.00013698,2]
[406602596,1771968646335,-1180.4,0.00013698,2]
[406602597,1771968646345,-1180.4,0.00013698,2]
[406602598,1771968646354,-1180.4,0.00013698,2]
[406602599,1771968646364,-1180.4,0.00013698,2]
[406602600,1771968646373,-1180.4,0.00013698,2]
[406602601,1771968646382,-1180.4,0.00013698,2]
[406602602,1771968646392,-1180.4,0.00013698,2]
[406602603,1771968646401,-1180.4,0.00013698,2]
[406602604,1771968646410,-1180.4,0.00013698,2]
[406602605,1771968646419,-1180.4,0.00013698,2]
[406602606,1771968646427,-1180.4,0.00013698,2]
[406602607,1771968646436,-1180.4,0.00013698,2]
[406602608,1771968646446,-1180.4,0.00013698,2]
[406602609,1771968646455,-1180.4,0.00013698,2]
[406602610,1771968646585,-1180.4,0.00013698,2]
[406602612,1771968646595,-1180.4,0.00013698,2]
[406602613,1771968646605,-500.0,0.00013698,2]
[406602614,1771968646614,-500.0,0.00013698,2]
[406602615,1771968646627,-500.0,0.00013698,2]
[406602616,1771968646637,-711.34,0.00013699,2]
[406602617,1771968646647,-16296.14,0.00013699,2]
[406602618,1771968646656,-200.0,0.00013699,2]
[406602619,1771968646666,-1240.46,0.00013699,2]
[406602620,1771968646675,-3309.3,0.000137,2]
[406602621,1771968646684,-3309.3,0.000137,2]
[406602622,1771968646693,-3309.3,0.000137,2]
[406602623,1771968646702,-3309.3,0.000137,2]
[406602624,1771968646711,-3309.3,0.000137,2]
[406602625,1771968646721,-2258.70537993,0.0001386,2]
[406602626,1771968646729,-3500.0,0.0001386,2]
[406602627,1771968646739,-3500.0,0.0001386,2]
[406602628,1771968646748,-11196.792469,0.00013962,7]
[406602629,1771968646757,-160.0,0.00013964,2]
[406602630,1771968646767,-173.87087054,0.00013964,2]
[406602631,1771968646776,-186.004558,0.00013964,7]
[406602632,1771968646786,-1500.0,0.00014,2]
[406602633,1771968646795,-500.0,0.00014011,2]
[406602634,1771968646804,-578.91,0.00014011,2]
[406602635,1771968646813,-501.44,0.00014011,2]
[406602636,1771968646823,-834.42,0.00014011,2]
[406602637,1771968646832,-1152.0,0.00014025,2]
[406602638,1771968646843,-4609.0,0.00014025,2]
[406602639,1771968646854,-1252.0,0.00014025,2]
[406602640,1771968646864,-348.4,0.00014036,2]
[406602641,1771968646874,-1172.263066,0.00014108,7]
[406602642,1771968646885,-1000.0,0.00014141,2]
[406602643,1771968646894,-151.0,0.00014155,2]
[406602644,1771968646903,-500.0,0.00014158,2]
[406602645,1771968646914,-466.76,0.00014301,2]
[406602646,1771968646924,-869.53342794,0.00014308,2]
[406602647,1771968646933,-157.39,0.0001432,2]
[406602648,1771968646943,-37687.07119789,0.0001436,2]
[406602649,1771968646952,-1240.46,0.00014384,2]
[406602650,1771968646961,-10357.55636516,0.0001439,2]
[406602651,1771968646970,-2125.47133191,0.00014408,2]
[406602652,1771968646979,-4000.0,0.00014408,2]
[406602653,1771968646989,-154.24,0.00014441,2]
[406602654,1771968646998,-151.0,0.00014634,2]
[406602655,1771968647008,-151.0,0.00014634,2]
[406602656,1771968647017,-4500.0,0.00014956,2]
[406602657,1771968647026,-250.0,0.00015,2]
[406602658,1771968647035,-2057.23131483,0.00015,2]
[406602659,1771968647044,-18027.12324089,0.00015,7]
[406602660,1771968647054,-8008.97204016,0.00015,2]
[406602661,1771968647063,-178.55,0.00015041,2]
[406602662,1771968647072,-704.5275546,0.00015066,2]
[406602663,1771968647082,-900.0,0.00015068,2]
[406602664,1771968647091,-1240.46,0.00015068,2]
[406602665,1771968647104,-500.0,0.000151,2]
[406602666,1771968647113,-503.99220136,0.000151,2]
[406602667,1771968647122,-511.18624479,0.000151,2]
[406602668,1771968647131,-504.16390705,0.000151,2]
[406602669,1771968647142,-500.0,0.000151,2]
[406602670,1771968647151,-500.0,0.000151,2]
[406602671,1771968647159,-500.0,0.000151,2]
[406602672,1771968647168,-500.0,0.000151,2]
[406602673,1771968647178,-509.0327441,0.000151,2]
[406602674,1771968647187,-500.0,0.000151,2]
[406602675,1771968647196,-500.0,0.000151,2]
[406602676,1771968647205,-304.38005979,0.000151,2]
[406602677,1771968647214,-500.0,0.000151,2]
[406602678,1771968647223,-500.0,0.000151,2]
[406602679,1771968647232,-500.0,0.000151,2]
[406602680,1771968647241,-500.0,0.000151,2]
[406602681,1771968647251,-500.0,0.000151,2]
[406602682,1771968647261,-500.0,0.000151,2]
[406602683,1771968647270,-166.89168146,0.000151,2]
[406602684,1771968647280,-500.0,0.000151,2]
[406602685,1771968647290,-500.0,0.000151,2]
[406602686,1771968647299,-500.0,0.000151,2]
[406602687,1771968647308,-162.83690276,0.000151,2]
[406602688,1771968647317,-163.37868708,0.000151,2]
[406602689,1771968647327,-170.38160206,0.000151,2]
[406602690,1771968647336,-500.0,0.000151,2]
[406602691,1771968647346,-599.206441,0.000151,2]
[406602692,1771968647355,-186.88471708,0.000151,2]
[406602693,1771968647364,-162.01971634,0.000151,2]
[406602694,1771968647373,-168.61283304,0.000151,2]
[406602695,1771968647383,-500.0,0.000151,2]
[406602696,1771968647392,-249.19438992,0.000151,2]
[406602697,1771968647401,-162.13031906,0.000151,2]
[406602698,1771968647411,-501.93759306,0.000151,2]
[406602699,1771968647420,-503.3459029,0.000151,2]
[406602700,1771968647430,-209.6165406,0.000151,2]
[406602701,1771968647439,-500.0,0.000151,2]
[406602702,1771968647449,-500.0,0.000151,2]
[406602703,1771968647459,-500.0,0.000151,2]
[406602704,1771968647467,-500.0,0.000151,2]
[406602705,1771968647477,-487.94127816,0.000151,2]
[406602706,1771968647486,-162.16417793,0.000151,2]
[406602707,1771968647495,-500.0,0.000151,2]
[406602708,1771968647504,-500.0,0.000151,2]
[406602709,1771968647513,-500.0,0.000151,2]
[406602710,1771968647522,-500.0,0.00015119,2]
[406602711,1771968647532,-119681.94032084,0.0001512,2]
[406602712,1771968647542,-534.69,0.00015166,2]
[406602713,1771968647553,-722.37,0.00015166,2]
[406602714,1771968647563,-518.48,0.00015166,2]
[406602715,1771968647574,-503.69,0.00015166,2]
[406602716,1771968647583,-218.44,0.00015236,2]
[406602717,1771968647593,-37687.07119789,0.00015245,2]
[406602718,1771968647602,-500.0,0.00015277,2]
[406602719,1771968647611,-578.91,0.00015277,2]
[406602720,1771968647621,-501.44,0.00015277,2]
[406602721,1771968647630,-834.42,0.00015277,2]
[406602722,1771968647639,-1517.64,0.000153,2]
[406602723,1771968647648,-554.47,0.00015311,2]
[406602724,1771968647658,-348.4,0.00015312,2]
[406602725,1771968647667,-293.39,0.00015341,2]
[406602726,1771968647676,-510.0565306,0.000154,2]
[406602727,1771968647686,-1613.0,0.00015427,2]
[406602728,1771968647695,-6453.0,0.00015427,2]
[406602729,1771968647704,-2129.0,0.00015433,2]
[406602730,1771968647713,-5000.0,0.00015504,2]
[406602731,1771968647722,-1000.0,0.00015507,2]
[406602732,1771968647733,-768.51,0.00015647,2]
[406602733,1771968647742,-1180.4,0.00015647,2]
[406602734,1771968647751,-502.25935248,0.00015648,2]
[406602735,1771968647760,-1000.0,0.00015648,2]
[406602736,1771968647770,-1000.0,0.00015648,2]
[406602737,1771968647779,-500.0,0.00015648,2]
[406602738,1771968647788,-198.82632419,0.00015648,2]
[406602739,1771968647797,-1092.86766843,0.00015648,2]
[406602740,1771968647807,-1000.0,0.00015648,2]
[406602741,1771968647816,-1000.0,0.00015648,2]
[406602742,1771968647826,-436.95947364,0.00015648,2]
[406602743,1771968647835,-1000.0,0.00015648,2]
[406602744,1771968647844,-1028.84101903,0.00015648,2]
[406602745,1771968647854,-1000.0,0.00015648,2]
[406602746,1771968647864,-1008.9890561,0.00015648,2]
[406602747,1771968647873,-583.60061699,0.00015648,2]
[406602748,1771968647882,-1000.0,0.00015648,2]
[406602749,1771968647891,-1000.0,0.00015648,2]
[406602750,1771968647901,-503.06431107,0.00015648,2]
[406602751,1771968647911,-1000.0,0.00015648,2]
[406602752,1771968647921,-1000.0,0.00015648,2]
[406602753,1771968647931,-402.52681035,0.00015648,2]
[406602754,1771968647943,-1000.0,0.00015648,2]
[406602755,1771968647953,-1000.0,0.00015648,2]
[406602756,1771968647962,-1000.0,0.00015648,2]
[406602757,1771968647971,-1000.0,0.00015648,2]
[406602758,1771968647980,-1000.0,0.00015648,2]
[406602759,1771968647989,-284.34,0.000157,2]
[406602760,1771968647998,-220.43,0.00015718,2]
[406602761,1771968648008,-1240.46,0.00015753,2]
[406602762,1771968648017,-155.09,0.00015801,2]
[406602763,1771968648026,-2247.75609779,0.00015807,2]
[406602764,1771968648036,-345.98019903,0.00015863,2]
[406602765,1771968648045,-1000.0,0.00015895,2]
[406602766,1771968648054,-500.0,0.00015917,2]
[406602767,1771968648064,-578.91,0.00015917,2]
[406602768,1771968648074,-501.44,0.00015917,2]
[406602769,1771968648083,-834.42,0.00015917,2]
[406602770,1771968648092,-419.22118993,0.00016,2]
[406602771,1771968648105,-198.75,0.0001602,2]